[Event "EUCC Open Blitz 2024"]
[Site "Miskolc"]
[Date "2024.07.13"]
[Round "1.8"]
[White "Fodor, Balazs"]
[Black "Bartok, David Dominik"]
[Result "1-0"]
[ECO "E07"]
[WhiteElo "2247"]
[BlackElo "1958"]
[PlyCount "95"]
[EventDate "2024.07.08"]
[EventType "team-tourn"]
[EventCountry "HUN"]
[TimeControl "1500+10"]

1. d4 {[%emt 0:22:24]} d5 {[%emt 0:22:17]} 2. c4 {[%emt 0:00:10]} e6 {[%emt 0:00:09]} 3. Nf3 {[%emt 0:00:10]} Nf6 {[%emt 0:00:09]} 4. g3 {[%emt 0:00:09]} Nbd7 {[%emt 0:00:21]} 5. Bg2 {[%emt 0:00:10]} c6 {[%emt 0:00:09]} 6. O-O {[%emt 0:00:11]} Be7 {[%emt 0:00:10]} 7. Nc3 {[%emt 0:00:11]} O-O {[%emt 0:00:11]} 8. Qd3 {[%emt 0:00:10]} b6 {[%emt 0:00:32]} 9. e4 {[%emt 0:00:09]} dxe4 {[%emt 0:00:14]} 10. Nxe4 {[%emt 0:00:10]} Nxe4 {[%emt 0:00:09]} 11. Qxe4 {[%emt 0:00:09]} Bb7 {[%emt 0:00:11]} 12. Rd1 {[%emt 0:00:15]} Qc8 {[%emt 0:00:24]} 13. Qe2 {[%emt 0:00:32]} Nf6 {[%emt 0:00:10]} 14. Bf4 {[%emt 0:00:15]} c5 {[%emt 0:00:10]} 15. d5 {[%emt 0:00:11]} Rd8 {[%emt 0:00:20]} 16. dxe6 {[%emt 0:00:17]} Qxe6 {[%emt 0:00:10]} 17. Qxe6 {[%emt 0:00:12]} fxe6 {[%emt 0:00:11]} 18. Ng5 {[%emt 0:00:17]} Bxg2 {[%emt 0:00:19]} 19. Kxg2 {[%emt 0:00:10]} e5 {[%emt 0:00:46]} 20. Bxe5 {[%emt 0:00:12]} Ng4 {[%emt 0:00:52]} 21. Nf3 {[%emt 0:00:16]} Nxe5 {[%emt 0:00:12]} 22. Nxe5 {[%emt 0:00:09]} Bf6 {[%emt 0:00:09]} 23. f4 {[%emt 0:00:28]} Re8 {[%emt 0:00:09]} 24. Rd5 {[%emt 0:00:15]} g5 {[%emt 0:00:14]} 25. Kf3 {[%emt 0:00:18]} gxf4 {[%emt 0:00:11]} 26. gxf4 {[%emt 0:00:09]} Bxe5 {[%emt 0:00:15]} 27. Rxe5 {[%emt 0:00:10]} Red8 {[%emt 0:00:11]} 28. Rg1+ {[%emt 0:00:10]} Kf8 {[%emt 0:00:09]} 29. Rh5 {[%emt 0:00:15]} Rd7 {[%emt 0:00:10]} 30. Rgg5 {[%emt 0:00:14]} Rg7 {[%emt 0:00:09]} 31. Rxg7 {[%emt 0:00:13]} Kxg7 32. Rd5 Kg6 {[%emt 0:00:25]} 33. Kg4 {[%emt 0:00:27]} Re8 {[%emt 0:00:12]} 34. Rd6+ {[%emt 0:00:10]} Kf7 {[%emt 0:00:10]} 35. Rd7+ {[%emt 0:00:09]} Kg8 {[%emt 0:00:12]} 36. Rxa7 {[%emt 0:00:10]} Re2 {[%emt 0:00:09]} 37. b3 {[%emt 0:00:22]} Rxh2 {[%emt 0:00:09]} 38. f5 {[%emt 0:00:09]} Rg2+ {[%emt 0:00:13]} 39. Kf3 {[%emt 0:00:10]} Rg1 {[%emt 0:00:09]} 40. Ra6 {[%emt 0:00:10]} Ra1 {[%emt 0:00:11]} 41. Rxb6 {[%emt 0:00:10]} Rxa2 {[%emt 0:00:10]} 42. f6 {[%emt 0:00:09]} Kf7 {[%emt 0:00:12]} 43. Ke4 {[%emt 0:00:15]} Rf2 {[%emt 0:00:13]} 44. Rb7+ {[%emt 0:00:09]} Kxf6 {[%emt 0:00:11]} 45. Rxh7 {[%emt 0:00:10]} Rb2 {[%emt 0:00:09]} 46. Rb7 {[%emt 0:00:10]} Ke6 {[%emt 0:00:09]} 47. Rb6+ {[%emt 0:00:09]} Kd7 {[%emt 0:00:09]} 48. Kd5 {[%emt 0:00:09]} 1-0

[Event "EUCC Open Blitz 2024"]
[Site "Miskolc"]
[Date "2024.07.13"]
[Round "1.9"]
[White "Vardanyan, Aras"]
[Black "Medve, Mark"]
[Result "1-0"]
[ECO "A05"]
[WhiteElo "2312"]
[BlackElo "2123"]
[PlyCount "79"]
[EventDate "2024.07.08"]
[EventType "team-tourn"]
[EventCountry "HUN"]
[TimeControl "1500+10"]

1. Nf3 {[%emt 0:22:18]} Nf6 {[%emt 0:22:18]} 2. g3 {[%emt 0:00:09]} e6 {[%emt 0:00:10]} 3. Bg2 {[%emt 0:00:09]} b6 {[%emt 0:00:09]} 4. O-O {[%emt 0:00:10]} Bb7 {[%emt 0:00:09]} 5. d3 {[%emt 0:00:10]} d5 {[%emt 0:00:11]} 6. Nbd2 {[%emt 0:00:11]} c5 {[%emt 0:00:10]} 7. e4 {[%emt 0:00:09]} Be7 {[%emt 0:00:19]} 8. Re1 {[%emt 0:00:09]} Nc6 {[%emt 0:00:15]} 9. c3 {[%emt 0:00:14]} O-O {[%emt 0:00:19]} 10. e5 {[%emt 0:00:09]} Nd7 {[%emt 0:00:09]} 11. d4 {[%emt 0:00:09]} Rc8 12. a3 cxd4 {[%emt 0:00:33]} 13. cxd4 {[%emt 0:00:21]} b5 {[%emt 0:00:17]} 14. h4 {[%emt 0:00:14]} Qb6 {[%emt 0:00:16]} 15. Nf1 {[%emt 0:00:12]} b4 {[%emt 0:00:11]} 16. Bg5 {[%emt 0:00:17]} Bxg5 {[%emt 0:00:26]} 17. hxg5 {[%emt 0:00:12]} bxa3 {[%emt 0:00:26]} 18. bxa3 {[%emt 0:00:08]} Ba6 19. Ne3 Na5 {[%emt 0:00:55]} 20. Ng4 {[%emt 0:00:40]} Rc3 {[%emt 0:00:09]} 21. Qd2 {[%emt 0:00:18]} Rfc8 {[%emt 0:00:09]} 22. Nf6+ {[%emt 0:00:15]} Nxf6 {[%emt 0:00:39]} 23. gxf6 {[%emt 0:00:08]} h6 {[%emt 0:00:21]} 24. Qf4 {[%emt 0:00:15]} Qd8 {[%emt 0:00:16]} 25. fxg7 {[%emt 0:00:24]} Kxg7 {[%emt 0:00:09]} 26. Qg4+ {[%emt 0:00:41]} Kh7 {[%emt 0:00:11]} 27. Qh5 {[%emt 0:00:13]} Kg7 {[%emt 0:00:09]} 28. Bh3 {[%emt 0:00:19]} Bd3 {[%emt 0:00:09]} 29. Kg2 {[%emt 0:00:12]} Be4 {[%emt 0:00:09]} 30. Rxe4 {[%emt 0:00:15]} dxe4 {[%emt 0:00:09]} 31. Qg4+ {[%emt 0:00:20]} Kh7 {[%emt 0:00:10]} 32. Qxe4+ {[%emt 0:00:09]} Kg7 {[%emt 0:00:09]} 33. Rh1 {[%emt 0:00:13]} Rxf3 {[%emt 0:00:17]} 34. Qxf3 {[%emt 0:00:11]} Qxd4 {[%emt 0:00:10]} 35. Qf6+ {[%emt 0:00:10]} Kg8 {[%emt 0:00:10]} 36. Bxe6 {[%emt 0:00:19]} Qe4+ {[%emt 0:00:11]} 37. Kh2 {[%emt 0:00:09]} Rf8 {[%emt 0:00:19]} 38. Bf5 {[%emt 0:00:13]} Qe2 {[%emt 0:00:14]} 39. Kg2 {[%emt 0:00:12]} Nc4 {[%emt 0:00:10]} 40. Bh7+ {[%emt 0:00:11]} 1-0

[Event "EUCC Open Blitz 2024"]
[Site "Miskolc"]
[Date "2024.07.13"]
[Round "1.10"]
[White "Kovacs, Gabor Etele"]
[Black "Stauskas, Lukas"]
[Result "0-1"]
[ECO "B85"]
[WhiteElo "2109"]
[BlackElo "2362"]
[PlyCount "78"]
[EventDate "2024.07.08"]
[EventType "team-tourn"]
[EventCountry "HUN"]
[TimeControl "1500+10"]

1. e4 {[%emt 0:22:18]} c5 {[%emt 0:22:17]} 2. Nf3 {[%emt 0:00:09]} e6 {[%emt 0:00:09]} 3. d4 {[%emt 0:00:13]} cxd4 {[%emt 0:00:09]} 4. Nxd4 {[%emt 0:00:09]} Nc6 {[%emt 0:00:08]} 5. Nc3 {[%emt 0:00:09]} Qc7 {[%emt 0:00:10]} 6. Be2 {[%emt 0:00:11]} a6 {[%emt 0:00:10]} 7. Be3 {[%emt 0:00:09]} Nf6 {[%emt 0:00:10]} 8. O-O {[%emt 0:00:10]} d6 {[%emt 0:00:09]} 9. f4 {[%emt 0:00:14]} Be7 {[%emt 0:00:10]} 10. Kh1 {[%emt 0:00:15]} O-O {[%emt 0:00:10]} 11. Bf3 {[%emt 0:00:15]} Bd7 {[%emt 0:00:31]} 12. Nb3 {[%emt 0:00:09]} b5 {[%emt 0:00:24]} 13. a3 {[%emt 0:00:26]} Rac8 {[%emt 0:00:10]} 14. g4 {[%emt 0:00:13]} Rfd8 {[%emt 0:00:27]} 15. g5 {[%emt 0:00:09]} Ne8 {[%emt 0:00:09]} 16. Bg2 {[%emt 0:00:11]} Na5 {[%emt 0:00:16]} 17. Nxa5 {[%emt 0:00:19]} Qxa5 {[%emt 0:00:09]} 18. Qh5 {[%emt 0:00:13]} b4 {[%emt 0:00:20]} 19. axb4 {[%emt 0:00:19]} Qxb4 {[%emt 0:00:09]} 20. Rab1 {[%emt 0:00:42]} Bc6 {[%emt 0:00:18]} 21. Rf3 {[%emt 0:01:16]} g6 {[%emt 0:00:14]} 22. Qh4 {[%emt 0:00:11]} Ng7 {[%emt 0:00:19]} 23. Rh3 {[%emt 0:00:10]} h5 {[%emt 0:00:11]} 24. Qf2 {[%emt 0:00:16]} Bb7 {[%emt 0:00:13]} 25. Bd4 {[%emt 0:00:17]} Rc4 {[%emt 0:00:19]} 26. Bxg7 {[%emt 0:00:09]} Kxg7 {[%emt 0:00:09]} 27. f5 {[%emt 0:00:12]} exf5 {[%emt 0:00:12]} 28. exf5 {[%emt 0:00:09]} Bxg5 {[%emt 0:00:26]} 29. fxg6 {[%emt 0:00:10]} fxg6 {[%emt 0:00:09]} 30. Rg3 {[%emt 0:00:13]} Bf4 {[%emt 0:00:19]} 31. Rf1 {[%emt 0:00:10]} Rf8 {[%emt 0:00:17]} 32. Rd3 {[%emt 0:00:12]} Rcc8 {[%emt 0:00:16]} 33. Kg1 {[%emt 0:00:11]} Bxh2+ {[%emt 0:00:18]} 34. Kxh2 {[%emt 0:00:09]} Rxf2 {[%emt 0:00:09]} 35. Rxf2 {[%emt 0:00:09]} Bxg2 {[%emt 0:00:15]} 36. Rxg2 {[%emt 0:00:08]} Qxb2 {[%emt 0:00:12]} 37. Nd5 {[%emt 0:00:11]} Rxc2 {[%emt 0:00:13]} 38. Rdg3 {[%emt 0:00:18]} Rxg2+ {[%emt 0:00:09]} 39. Rxg2 {[%emt 0:00:09]} Qe5+ {[%emt 0:00:08]} 0-1

[Event "EUCC Open Blitz 2024"]
[Site "Miskolc"]
[Date "2024.07.13"]
[Round "1.11"]
[White "Budak, Rewi"]
[Black "Gharibyan, Mamikon"]
[Result "0-1"]
[ECO "B23"]
[WhiteElo "2100"]
[BlackElo "2492"]
[PlyCount "92"]
[EventDate "2024.07.08"]
[EventType "team-tourn"]
[EventCountry "HUN"]
[TimeControl "1500+10"]

1. e4 {[%emt 0:22:17]} c5 {[%emt 0:22:17]} 2. Nc3 {[%emt 0:00:14]} Nc6 {[%emt 0:00:10]} 3. Nf3 {[%emt 0:00:13]} e5 {[%emt 0:00:14]} 4. Bc4 {[%emt 0:00:11]} Be7 {[%emt 0:00:10]} 5. O-O {[%emt 0:00:22]} d6 {[%emt 0:00:09]} 6. d3 {[%emt 0:00:33]} Nf6 {[%emt 0:00:18]} 7. Re1 {[%emt 0:00:24]} h6 {[%emt 0:00:12]} 8. Nh4 {[%emt 0:00:33]} a6 {[%emt 0:00:51]} 9. a3 {[%emt 0:00:12]} b5 {[%emt 0:00:18]} 10. Ba2 {[%emt 0:00:09]} Nd4 {[%emt 0:00:20]} 11. Nd5 {[%emt 0:01:28]} Nxd5 {[%emt 0:00:24]} 12. Bxd5 {[%emt 0:00:09]} Ra7 {[%emt 0:00:09]} 13. c3 {[%emt 0:00:16]} Bxh4 {[%emt 0:00:18]} 14. cxd4 {[%emt 0:00:09]} cxd4 {[%emt 0:00:09]} 15. Qf3 {[%emt 0:00:17]} O-O 16. Bd2 Kh8 {[%emt 0:01:15]} 17. Rac1 {[%emt 0:00:24]} f5 {[%emt 0:00:19]} 18. Rf1 {[%emt 0:00:11]} fxe4 {[%emt 0:00:14]} 19. Qxe4 {[%emt 0:00:09]} Bf5 {[%emt 0:00:10]} 20. Qf3 {[%emt 0:00:09]} Bg6 {[%emt 0:00:25]} 21. Qh3 {[%emt 0:00:10]} Rd7 {[%emt 0:00:15]} 22. Be6 {[%emt 0:00:12]} Rc7 {[%emt 0:00:10]} 23. Ba5 {[%emt 0:00:11]} Rxc1 {[%emt 0:00:09]} 24. Bxd8 {[%emt 0:00:09]} Rxf1+ {[%emt 0:00:09]} 25. Kxf1 {[%emt 0:00:09]} Bxd8 {[%emt 0:00:09]} 26. Bc8 {[%emt 0:00:14]} Bg5 {[%emt 0:00:10]} 27. Ke2 {[%emt 0:00:10]} e4 {[%emt 0:00:10]} 28. Bxa6 {[%emt 0:00:12]} exd3+ {[%emt 0:00:09]} 29. Kd1 {[%emt 0:00:09]} d2 {[%emt 0:00:11]} 30. Bxb5 {[%emt 0:00:10]} Rxf2 {[%emt 0:00:13]} 31. Bd3 {[%emt 0:00:10]} Bxd3 32. Qxd3 {[%emt 0:00:09]} Rxg2 {[%emt 0:00:19]} 33. Qxd4 {[%emt 0:00:09]} Rxh2 {[%emt 0:00:10]} 34. Qd5 {[%emt 0:00:10]} Rf2 {[%emt 0:00:10]} 35. Qa8+ {[%emt 0:00:09]} Kh7 {[%emt 0:00:09]} 36. Qe4+ {[%emt 0:00:09]} Kg8 {[%emt 0:00:11]} 37. Qc4+ {[%emt 0:00:11]} Kh8 {[%emt 0:00:10]} 38. a4 {[%emt 0:00:08]} Rf8 {[%emt 0:00:11]} 39. a5 {[%emt 0:00:09]} Re8 {[%emt 0:00:08]} 40. Qe2 {[%emt 0:00:14]} Rc8 {[%emt 0:00:09]} 41. Qd3 {[%emt 0:00:13]} Rc1+ {[%emt 0:00:11]} 42. Ke2 {[%emt 0:00:08]} Re1+ {[%emt 0:00:09]} 43. Kf3 {[%emt 0:00:10]} d1=Q+ {[%emt 0:00:10]} 44. Qxd1 {[%emt 0:00:09]} Rxd1 {[%emt 0:00:09]} 45. b4 {[%emt 0:00:10]} Ra1 {[%emt 0:00:10]} 46. Ke4 {[%emt 0:00:12]} Bd2 {[%emt 0:00:10]} 0-1

[Event "EUCC Open Blitz 2024"]
[Site "Miskolc"]
[Date "2024.07.13"]
[Round "1.12"]
[White "Manukyan, Artyom"]
[Black "Delpech, Anthony"]
[Result "1-0"]
[ECO "B23"]
[WhiteElo "2155"]
[BlackElo "1877"]
[PlyCount "53"]
[EventDate "2024.07.08"]
[EventType "team-tourn"]
[EventCountry "HUN"]
[TimeControl "1500+10"]

1. e4 {[%emt 0:22:18]} c5 {[%emt 0:22:17]} 2. Nc3 {[%emt 0:00:09]} Nc6 {[%emt 0:00:08]} 3. Bb5 g6 {[%emt 0:00:09]} 4. Bxc6 {[%emt 0:00:19]} dxc6 {[%emt 0:00:10]} 5. d3 {[%emt 0:00:10]} Bg7 {[%emt 0:00:09]} 6. f4 {[%emt 0:00:09]} Nf6 {[%emt 0:00:09]} 7. Nf3 {[%emt 0:00:09]} O-O {[%emt 0:00:39]} 8. O-O {[%emt 0:00:10]} b5 {[%emt 0:00:35]} 9. Qe1 {[%emt 0:00:11]} b4 {[%emt 0:00:10]} 10. Ne2 {[%emt 0:00:31]} c4 {[%emt 0:00:10]} 11. e5 {[%emt 0:00:22]} Ng4 {[%emt 0:00:24]} 12. dxc4 {[%emt 0:00:19]} Qb6+ {[%emt 0:00:15]} 13. Kh1 {[%emt 0:00:11]} Ba6 {[%emt 0:00:32]} 14. b3 {[%emt 0:00:11]} Ne3 {[%emt 0:00:09]} 15. Bxe3 {[%emt 0:00:30]} Qxe3 {[%emt 0:00:09]} 16. Ned4 {[%emt 0:00:28]} Qxf4 {[%emt 0:00:25]} 17. Nxc6 {[%emt 0:00:11]} Bb7 {[%emt 0:00:15]} 18. Nxe7+ {[%emt 0:00:09]} Kh8 {[%emt 0:00:09]} 19. Nd5 {[%emt 0:00:10]} Qg4 {[%emt 0:00:21]} 20. h3 {[%emt 0:00:17]} Qh5 {[%emt 0:00:14]} 21. Qg3 {[%emt 0:00:12]} Rad8 {[%emt 0:00:11]} 22. Rad1 {[%emt 0:00:15]} Rfe8 {[%emt 0:00:09]} 23. Nf6 {[%emt 0:00:14]} Bxf6 {[%emt 0:00:13]} 24. exf6 {[%emt 0:00:13]} Be4 {[%emt 0:00:31]} 25. Rxd8 {[%emt 0:00:18]} Rxd8 {[%emt 0:00:08]} 26. Ng5 {[%emt 0:00:11]} Rd1 {[%emt 0:00:22]} 27. Qb8+ {[%emt 0:00:12]} 1-0

[Event "EUCC Open Blitz 2024"]
[Site "Miskolc"]
[Date "2024.07.13"]
[Round "1.13"]
[White "Pribelszky, Bence"]
[Black "Jellema, Pieter"]
[Result "0-1"]
[ECO "A04"]
[WhiteElo "2363"]
[BlackElo "2006"]
[PlyCount "60"]
[EventDate "2024.07.08"]
[EventType "team-tourn"]
[EventCountry "HUN"]
[TimeControl "1500+10"]

1. Nf3 {[%emt 0:22:19]} f5 {[%emt 0:22:16]} 2. d4 {[%emt 0:00:10]} Nf6 {[%emt 0:00:09]} 3. e3 {[%emt 0:00:09]} e6 {[%emt 0:00:09]} 4. Bd3 {[%emt 0:00:10]} b6 {[%emt 0:00:09]} 5. O-O {[%emt 0:00:10]} Bb7 {[%emt 0:00:08]} 6. Nbd2 {[%emt 0:00:20]} Be7 {[%emt 0:00:09]} 7. Re1 {[%emt 0:00:09]} Ne4 {[%emt 0:00:10]} 8. c4 {[%emt 0:00:18]} O-O {[%emt 0:00:21]} 9. Qc2 {[%emt 0:00:09]} d5 {[%emt 0:00:14]} 10. b3 {[%emt 0:00:11]} Nd7 {[%emt 0:00:09]} 11. Bb2 {[%emt 0:00:10]} Rc8 {[%emt 0:00:19]} 12. Ne5 {[%emt 0:00:41]} Nxe5 {[%emt 0:00:17]} 13. dxe5 {[%emt 0:00:13]} Qe8 {[%emt 0:00:24]} 14. cxd5 {[%emt 0:00:30]} exd5 {[%emt 0:00:14]} 15. a4 {[%emt 0:00:14]} Bb4 {[%emt 0:00:11]} 16. Bxe4 {[%emt 0:00:20]} fxe4 {[%emt 0:00:09]} 17. Bc3 {[%emt 0:00:21]} Bxc3 {[%emt 0:00:18]} 18. Qxc3 {[%emt 0:00:09]} Qf7 {[%emt 0:00:10]} 19. f4 {[%emt 0:00:26]} exf3 {[%emt 0:00:10]} 20. Nxf3 {[%emt 0:00:09]} Qg6 {[%emt 0:00:10]} 21. Kh1 {[%emt 0:00:15]} c5 {[%emt 0:00:09]} 22. Rf1 {[%emt 0:00:22]} d4 {[%emt 0:00:18]} 23. exd4 {[%emt 0:00:12]} cxd4 {[%emt 0:00:08]} 24. Qxd4 {[%emt 0:00:10]} Rc2 {[%emt 0:00:11]} 25. Rf2 {[%emt 0:00:15]} h6 {[%emt 0:00:40]} 26. Re1 {[%emt 0:00:23]} Rxf3 {[%emt 0:00:23]} 27. Rxc2 {[%emt 0:00:39]} Qxc2 {[%emt 0:00:18]} 28. Qg4 {[%emt 0:00:09]} Qf2 {[%emt 0:00:43]} 29. Rg1 {[%emt 0:00:10]} Re3 {[%emt 0:00:16]} 30. e6 {[%emt 0:00:12]} Re1 {[%emt 0:00:15]} 0-1

[Event "EUCC Open Blitz 2024"]
[Site "Miskolc"]
[Date "2024.07.13"]
[Round "1.14"]
[White "Broersma, Sven"]
[Black "Vodila, Martin Botond"]
[Result "0-1"]
[ECO "D90"]
[WhiteElo "1945"]
[BlackElo "2236"]
[PlyCount "44"]
[EventDate "2024.07.08"]
[EventType "team-tourn"]
[EventCountry "HUN"]
[TimeControl "1500+10"]

1. d4 {[%emt 0:22:18]} Nf6 {[%emt 0:22:17]} 2. c4 {[%emt 0:00:08]} g6 {[%emt 0:00:08]} 3. Nc3 {[%emt 0:00:09]} d5 {[%emt 0:00:12]} 4. Nf3 {[%emt 0:00:09]} Bg7 {[%emt 0:00:09]} 5. h4 {[%emt 0:00:08]} dxc4 {[%emt 0:00:19]} 6. e4 {[%emt 0:00:09]} Bg4 {[%emt 0:00:26]} 7. d5 {[%emt 0:00:30]} c6 {[%emt 0:00:17]} 8. Bxc4 {[%emt 0:00:13]} Nbd7 9. dxc6 {[%emt 0:00:15]} bxc6 {[%emt 0:00:32]} 10. Qb3 {[%emt 0:00:40]} Bxf3 {[%emt 0:00:47]} 11. Bxf7+ {[%emt 0:00:15]} Kf8 {[%emt 0:00:08]} 12. gxf3 {[%emt 0:00:09]} Ne5 {[%emt 0:00:09]} 13. Bc4 {[%emt 0:00:22]} Rb8 {[%emt 0:00:20]} 14. Qa4 {[%emt 0:00:12]} Nxf3+ {[%emt 0:00:30]} 15. Kf1 {[%emt 0:00:10]} Ne5 {[%emt 0:00:41]} 16. Bf4 {[%emt 0:00:44]} Nh5 {[%emt 0:00:23]} 17. Rd1 {[%emt 0:00:31]} Qb6 {[%emt 0:00:14]} 18. Bxe5 {[%emt 0:00:41]} Bxe5 {[%emt 0:00:09]} 19. Bb3 {[%emt 0:00:09]} Kg7 {[%emt 0:00:17]} 20. Qc4 {[%emt 0:00:10]} Rhf8 {[%emt 0:00:11]} 21. Rd2 {[%emt 0:00:23]} Rbd8 {[%emt 0:00:08]} 22. Re2 {[%emt 0:00:09]} Ng3+ {[%emt 0:00:10]} 0-1

[Event "EUCC Open Blitz 2024"]
[Site "Miskolc"]
[Date "2024.07.13"]
[Round "1.15"]
[White "Schiopu, Andreea-Alexandra"]
[Black "Safar, Sandro"]
[Result "0-1"]
[ECO "A96"]
[WhiteElo "1829"]
[BlackElo "2220"]
[PlyCount "66"]
[EventDate "2024.07.08"]
[EventType "team-tourn"]
[EventCountry "HUN"]
[TimeControl "1500+10"]

1. Nf3 {[%emt 0:22:18]} f5 {[%emt 0:22:17]} 2. d4 {[%emt 0:00:09]} Nf6 {[%emt 0:00:09]} 3. g3 {[%emt 0:00:12]} e6 {[%emt 0:00:10]} 4. Bg2 {[%emt 0:00:09]} d6 {[%emt 0:00:09]} 5. O-O {[%emt 0:00:10]} Be7 {[%emt 0:00:09]} 6. c4 {[%emt 0:00:17]} O-O {[%emt 0:00:12]} 7. Nc3 {[%emt 0:00:21]} Ne4 {[%emt 0:00:09]} 8. Qb3 {[%emt 0:00:24]} a5 {[%emt 0:00:26]} 9. Qc2 {[%emt 0:00:36]} Nxc3 {[%emt 0:00:13]} 10. Qxc3 {[%emt 0:00:10]} Nc6 {[%emt 0:00:16]} 11. b3 {[%emt 0:00:16]} Bf6 {[%emt 0:00:19]} 12. Bb2 {[%emt 0:00:09]} e5 {[%emt 0:00:15]} 13. dxe5 {[%emt 0:00:21]} dxe5 {[%emt 0:00:10]} 14. Qc2 {[%emt 0:00:26]} Qe7 {[%emt 0:00:22]} 15. Rfd1 {[%emt 0:00:24]} Be6 {[%emt 0:00:32]} 16. Ne1 {[%emt 0:00:21]} e4 {[%emt 0:00:36]} 17. Bxf6 {[%emt 0:00:17]} Qxf6 {[%emt 0:00:10]} 18. e3 {[%emt 0:00:31]} a4 {[%emt 0:00:29]} 19. Rac1 {[%emt 0:00:21]} axb3 {[%emt 0:00:19]} 20. axb3 {[%emt 0:00:09]} Ra3 {[%emt 0:00:44]} 21. Qc3 {[%emt 0:00:10]} Qxc3 {[%emt 0:00:13]} 22. Rxc3 {[%emt 0:00:09]} Nb4 {[%emt 0:00:18]} 23. Rdc1 {[%emt 0:00:20]} Na2 {[%emt 0:00:14]} 24. Ra1 {[%emt 0:00:10]} Rfa8 {[%emt 0:00:14]} 25. Rc2 {[%emt 0:00:10]} Nb4 {[%emt 0:00:09]} 26. Rxa3 {[%emt 0:00:10]} Rxa3 {[%emt 0:00:09]} 27. Rc3 {[%emt 0:00:08]} Kf7 {[%emt 0:00:13]} 28. Bf1 {[%emt 0:00:11]} c5 {[%emt 0:00:09]} 29. Be2 {[%emt 0:00:12]} Ra1 {[%emt 0:00:12]} 30. Kf1 {[%emt 0:00:11]} g5 {[%emt 0:00:10]} 31. Bh5+ {[%emt 0:00:16]} Ke7 {[%emt 0:00:09]} 32. Be2 {[%emt 0:00:13]} f4 {[%emt 0:00:11]} 33. gxf4 {[%emt 0:00:10]} Bh3+ {[%emt 0:00:08]} 0-1

[Event "EUCC Open Blitz 2024"]
[Site "Miskolc"]
[Date "2024.07.13"]
[Round "1.16"]
[White "Tomulic, Teo"]
[Black "Panait, Robert-Florentin"]
[Result "1-0"]
[ECO "B20"]
[WhiteElo "2346"]
[BlackElo "1696"]
[PlyCount "55"]
[EventDate "2024.07.08"]
[EventType "team-tourn"]
[EventCountry "HUN"]
[TimeControl "1500+10"]

1. e4 {[%emt 0:22:17]} c5 {[%emt 0:22:16]} 2. b4 {[%emt 0:00:10]} e6 {[%emt 0:00:13]} 3. bxc5 {[%emt 0:00:10]} Bxc5 {[%emt 0:00:09]} 4. d4 {[%emt 0:00:09]} Bb6 {[%emt 0:00:11]} 5. c3 {[%emt 0:00:10]} Nc6 {[%emt 0:00:15]} 6. Bd3 {[%emt 0:00:11]} d6 {[%emt 0:00:12]} 7. f4 {[%emt 0:00:10]} Bd7 {[%emt 0:00:15]} 8. Nf3 {[%emt 0:00:09]} Nge7 {[%emt 0:00:13]} 9. Qe2 {[%emt 0:00:12]} O-O {[%emt 0:00:11]} 10. Be3 {[%emt 0:00:09]} Rc8 {[%emt 0:00:16]} 11. O-O {[%emt 0:00:11]} f5 {[%emt 0:00:11]} 12. exf5 {[%emt 0:00:44]} Nxf5 {[%emt 0:00:11]} 13. Bf2 {[%emt 0:00:10]} Qe8 {[%emt 0:00:31]} 14. Nbd2 {[%emt 0:00:12]} e5 {[%emt 0:00:13]} 15. fxe5 {[%emt 0:00:24]} dxe5 {[%emt 0:00:10]} 16. dxe5 {[%emt 0:00:14]} Bxf2+ {[%emt 0:00:10]} 17. Rxf2 {[%emt 0:00:10]} Be6 {[%emt 0:00:32]} 18. Ng5 {[%emt 0:00:11]} Bd5 {[%emt 0:00:18]} 19. Bxf5 {[%emt 0:00:19]} Nxe5 {[%emt 0:00:16]} 20. Bxc8 {[%emt 0:00:20]} Rxf2 {[%emt 0:00:09]} 21. Qxf2 {[%emt 0:00:18]} Qxc8 {[%emt 0:00:11]} 22. Qd4 {[%emt 0:00:20]} Qc6 {[%emt 0:00:32]} 23. Qxe5 {[%emt 0:00:21]} Qc5+ {[%emt 0:00:20]} 24. Qd4 {[%emt 0:00:10]} Qc6 {[%emt 0:00:12]} 25. Ngf3 {[%emt 0:00:17]} a6 {[%emt 0:00:14]} 26. Re1 {[%emt 0:00:11]} h6 {[%emt 0:00:32]} 27. Re7 {[%emt 0:00:18]} Bxa2 {[%emt 0:00:34]} 28. Qxg7# {[%emt 0:00:10]} 1-0